Workbook

Sheet MATRICULA
C3: Secretaría de Educación Pública del Estado de Baja California Sur
C4: Dirección de Educación Secundaria
C5: MATRÍCULA
C6: PERIODO DE EVALUACIÓN: | O6: CONCENTRADO FINAL
C7: CICLO ESCOLAR : | O7: 2021-2022
B10: DIRECCIÓN: | I10: EDUCACIÓN SECUNDARIA
B11: DIRECTORA: | I11: MTRA. OFELIA ELIZABETH OCHOA ROMERO
B13: Modalidad | C13: MATRÍCULA
C14: INSCRIPCIÓN INICIAL | O14: CAMBIOS DESDE OTRAS ESCUELAS (ALTAS)
C15: PRIMERO | F15: SEGUNDO | I15: TERCERO | L15: TOTAL | O15: PRIMERO | R15: SEGUNDO | U15: TERCERO | X15: TOTAL
C16: H | D16: M | E16: T | F16: H | G16: M | H16: T | I16: H | J16: M | K16: T | L16: H | M16: M | N16: T | O16: H | P16: M | Q16: T | R16: H | S16: M | T16: T | U16: H | V16: M | W16: T | X16: H | Y16: M | Z16: T
B17: Generales Públicas | C17: 2819 | D17: 2725 | E17: =IF(SUM(C17,D17)=0,"",SUM(C17,D17)) -> 5544 | F17: 2826 | G17: 2902 | H17: =IF(SUM(F17,G17)=0,"",SUM(F17,G17)) -> 5728 | I17: 2671 | J17: 2736 | K17: =IF(SUM(I17,J17)=0,"",SUM(I17,J17)) -> 5407 | L17: =IF(SUM(C17,F17,I17)=0,"",SUM(C17,F17,I17)) -> 8316 | M17: =IF(SUM(D17,G17,J17)=0,"",SUM(SUM(D17,G17,J17))) -> 8363 | N17: =IF(SUM(L17,M17)=0,"",SUM(L17,M17)) -> 16679 | O17: 105 | P17: 99 | Q17: =IF(SUM(O17,P17)=0,"",SUM(O17,P17)) -> 204 | R17: 112 | S17: 125 | T17: =IF(SUM(R17,S17)=0,"",SUM(R17,S17)) -> 237 | U17: 58 | V17: 92 | W17: =IF(SUM(U17,V17)=0,"",SUM(U17,V17)) -> 150 | X17: =IF(SUM(O17,R17,U17)=0,"",SUM(O17,R17,U17)) -> 275 | Y17: =IF(SUM(P17,S17,V17)=0,"",SUM(SUM(P17,S17,V17))) -> 316 | Z17: =IF(SUM(X17,Y17)=0,"",SUM(X17,Y17)) -> 591
B18: Particulares | C18: 547 | D18: 616 | E18: =IF(SUM(C18,D18)=0,"",SUM(C18,D18)) -> 1163 | F18: 555 | G18: 612 | H18: =IF(SUM(F18,G18)=0,"",SUM(F18,G18)) -> 1167 | I18: 578 | J18: 600 | K18: =IF(SUM(I18,J18)=0,"",SUM(I18,J18)) -> 1178 | L18: =IF(SUM(C18,F18,I18)=0,"",SUM(C18,F18,I18)) -> 1680 | M18: =IF(SUM(D18,G18,J18)=0,"",SUM(SUM(D18,G18,J18))) -> 1828 | N18: =IF(SUM(L18,M18)=0,"",SUM(L18,M18)) -> 3508 | O18: 21 | P18: 25 | Q18: =IF(SUM(O18,P18)=0,"",SUM(O18,P18)) -> 46 | R18: 26 | S18: 23 | T18: =IF(SUM(R18,S18)=0,"",SUM(R18,S18)) -> 49 | U18: 19 | V18: 16 | W18: =IF(SUM(U18,V18)=0,"",SUM(U18,V18)) -> 35 | X18: =IF(SUM(O18,R18,U18)=0,"",SUM(O18,R18,U18)) -> 66 | Y18: =IF(SUM(P18,S18,V18)=0,"",SUM(SUM(P18,S18,V18))) -> 64 | Z18: =IF(SUM(X18,Y18)=0,"",SUM(X18,Y18)) -> 130
B19: Secundaria Técnica | C19: 2600 | D19: 2520 | E19: 5120 | F19: 2577 | G19: 2580 | H19: 5157 | I19: 2549 | J19: 2508 | K19: 5057 | L19: 7726 | M19: 7608 | N19: 15334 | O19: 103 | P19: 101 | Q19: 204 | R19: 102 | S19: 109 | T19: 211 | U19: 77 | V19: 85 | W19: 162 | X19: 282 | Y19: 295 | Z19: 577
B20: Telesecundaria | C20: 957 | D20: 841 | E20: 1798 | F20: 906 | G20: 781 | H20: 1687 | I20: 878 | J20: 845 | K20: 1723 | L20: 2741 | M20: 2467 | N20: 5208 | O20: 38 | P20: 27 | Q20: 65 | R20: 33 | S20: 34 | T20: 67 | U20: 28 | V20: 24 | W20: 52 | X20: 99 | Y20: 85 | Z20: 184
E21: =IF(SUM(C21,D21)=0,"",SUM(C21,D21)) ->  | H21: =IF(SUM(F21,G21)=0,"",SUM(F21,G21)) ->  | K21: =IF(SUM(I21,J21)=0,"",SUM(I21,J21)) ->  | L21: =IF(SUM(C21,F21,I21)=0,"",SUM(C21,F21,I21)) ->  | M21: =IF(SUM(D21,G21,J21)=0,"",SUM(SUM(D21,G21,J21))) ->  | N21: =IF(SUM(L21,M21)=0,"",SUM(L21,M21)) ->  | Q21: =IF(SUM(O21,P21)=0,"",SUM(O21,P21)) ->  | T21: =IF(SUM(R21,S21)=0,"",SUM(R21,S21)) ->  | W21: =IF(SUM(U21,V21)=0,"",SUM(U21,V21)) ->  | X21: =IF(SUM(O21,R21,U21)=0,"",SUM(O21,R21,U21)) ->  | Y21: =IF(SUM(P21,S21,V21)=0,"",SUM(SUM(P21,S21,V21))) ->  | Z21: =IF(SUM(X21,Y21)=0,"",SUM(X21,Y21)) -> 
B27: TOTAL | C27: =IF(SUM(C17:C26)=0,"",SUM(C17:C26)) -> 6923 | D27: 6702 | E27: 13625 | F27: 6864 | G27: 6875 | H27: 13739 | I27: 6676 | J27: 6689 | K27: 13365 | L27: 20463 | M27: 20266 | N27: 40729 | O27: 267 | P27: 252 | Q27: 519 | R27: 273 | S27: 291 | T27: 564 | U27: 182 | V27: 217 | W27: 399 | X27: 722 | Y27: 760 | Z27: 1482
B29: Modalidad | C29: BAJAS | AA29: EXISTENCIA
C30: DESERCIÓN | O30: CAMBIOS HACIA OTRAS ESCUELAS (TRASLADOS)
C31: PRIMERO | F31: SEGUNDO | I31: TERCERO | L31: TOTAL | O31: PRIMERO | R31: SEGUNDO | U31: TERCERO | X31: TOTAL | AA31: PRIMERO | AD31: SEGUNDO | AG31: TERCERO | AJ31: TOTAL
C32: H | D32: M | E32: T | F32: H | G32: M | H32: T | I32: H | J32: M | K32: T | L32: H | M32: M | N32: T | O32: H | P32: M | Q32: T | R32: H | S32: M | T32: T | U32: H | V32: M | W32: T | X32: H | Y32: M | Z32: T | AA32: H | AB32: M | AC32: T | AD32: H | AE32: M | AF32: T | AG32: H | AH32: M | AI32: T | AJ32: H | AK32: M | AL32: T
B33: =IF(B17=0,"",B17) -> Generales Públicas | C33: 47 | D33: 48 | E33: =IF(SUM(C33,D33)=0,"",SUM(C33,D33)) -> 95 | F33: 38 | G33: 38 | H33: =IF(SUM(F33,G33)=0,"",SUM(F33,G33)) -> 76 | I33: 41 | J33: 30 | K33: =IF(SUM(I33,J33)=0,"",SUM(I33,J33)) -> 71 | L33: =IF(SUM(C33,F33,I33)=0,"",SUM(C33,F33,I33)) -> 126 | M33: =IF(SUM(D33,G33,J33)=0,"",SUM(SUM(D33,G33,J33))) -> 116 | N33: =IF(SUM(L33,M33)=0,"",SUM(L33,M33)) -> 242 | O33: 104 | P33: 105 | Q33: =IF(SUM(O33,P33)=0,"",SUM(O33,P33)) -> 209 | R33: 113 | S33: 147 | T33: =IF(SUM(R33,S33)=0,"",SUM(R33,S33)) -> 260 | U33: 100 | V33: 101 | W33: =IF(SUM(U33,V33)=0,"",SUM(U33,V33)) -> 201 | X33: =IF(SUM(O33,R33,U33)=0,"",SUM(O33,R33,U33)) -> 317 | Y33: =IF(SUM(P33,S33,V33)=0,"",SUM(SUM(P33,S33,V33))) -> 353 | Z33: =IF(SUM(X33,Y33)=0,"",SUM(X33,Y33)) -> 670 | AA33: =IF(SUM(C17,O17-C33-O33)=0,"",SUM(C17,O17-C33-O33)) -> 2773 | AB33: =IF(SUM(D17,P17-D33-P33)=0,"",SUM(D17,P17-D33-P33)) -> 2671 | AC33: =IF(SUM(AA33,AB33)=0,"",SUM(AA33,AB33)) -> 5444 | AD33: =IF(SUM(F17,R17-F33-R33)=0,"",SUM(F17,R17-F33-R33)) -> 2787 | AE33: =IF(SUM(G17,S17-G33-S33)=0,"",SUM(G17,S17-G33-S33)) -> 2842 | AF33: =IF(SUM(AD33,AE33)=0,"",SUM(AD33,AE33)) -> 5629 | AG33: =IF(SUM(I17,U17-I33-U33)=0,"",SUM(I17,U17-I33-U33)) -> 2588 | AH33: =IF(SUM(J17,V17-J33-V33)=0,"",SUM(J17,V17-J33-V33)) -> 2697 | AI33: =IF(SUM(AG33,AH33)=0,"",SUM(AG33,AH33)) -> 5285 | AJ33: =IF(SUM(AA33,AD33,AG33)=0,"",SUM(AA33,AD33,AG33)) -> 8148 | AK33: =IF(SUM(AB33,AE33,AH33)=0,"",SUM(SUM(AB33,AE33,AH33))) -> 8210 | AL33: =IF(SUM(AJ33,AK33)=0,"",SUM(AJ33,AK33)) -> 16358
B34: Particulares | C34: 1 | D34: 1 | E34: =IF(SUM(C34,D34)=0,"",SUM(C34,D34)) -> 2 | F34: 1 | G34: 1 | H34: =IF(SUM(F34,G34)=0,"",SUM(F34,G34)) -> 2 | J34: 3 | K34: =IF(SUM(I34,J34)=0,"",SUM(I34,J34)) -> 3 | L34: =IF(SUM(C34,F34,I34)=0,"",SUM(C34,F34,I34)) -> 2 | M34: =IF(SUM(D34,G34,J34)=0,"",SUM(SUM(D34,G34,J34))) -> 5 | N34: =IF(SUM(L34,M34)=0,"",SUM(L34,M34)) -> 7 | O34: 14 | P34: 8 | Q34: =IF(SUM(O34,P34)=0,"",SUM(O34,P34)) -> 22 | R34: 8 | S34: 13 | T34: =IF(SUM(R34,S34)=0,"",SUM(R34,S34)) -> 21 | U34: 6 | V34: 12 | W34: =IF(SUM(U34,V34)=0,"",SUM(U34,V34)) -> 18 | X34: =IF(SUM(O34,R34,U34)=0,"",SUM(O34,R34,U34)) -> 28 | Y34: =IF(SUM(P34,S34,V34)=0,"",SUM(SUM(P34,S34,V34))) -> 33 | Z34: =IF(SUM(X34,Y34)=0,"",SUM(X34,Y34)) -> 61 | AA34: =IF(SUM(C18,O18-C34-O34)=0,"",SUM(C18,O18-C34-O34)) -> 553 | AB34: 632 | AC34: 1185 | AD34: =IF(SUM(F18,R18-F34-R34)=0,"",SUM(F18,R18-F34-R34)) -> 572 | AE34: =IF(SUM(G18,S18-G34-S34)=0,"",SUM(G18,S18-G34-S34)) -> 621 | AF34: =IF(SUM(AD34,AE34)=0,"",SUM(AD34,AE34)) -> 1193 | AG34: =IF(SUM(I18,U18-I34-U34)=0,"",SUM(I18,U18-I34-U34)) -> 591 | AH34: =IF(SUM(J18,V18-J34-V34)=0,"",SUM(J18,V18-J34-V34)) -> 601 | AI34: =IF(SUM(AG34,AH34)=0,"",SUM(AG34,AH34)) -> 1192 | AJ34: =IF(SUM(AA34,AD34,AG34)=0,"",SUM(AA34,AD34,AG34)) -> 1716 | AK34: =IF(SUM(AB34,AE34,AH34)=0,"",SUM(SUM(AB34,AE34,AH34))) -> 1854 | AL34: =IF(SUM(AJ34,AK34)=0,"",SUM(AJ34,AK34)) -> 3570
B35: =IF(B19=0,"",B19) -> Secundaria Técnica | C35: 18 | D35: 12 | E35: 30 | F35: 28 | G35: 18 | H35: 46 | I35: 34 | J35: 20 | K35: 54 | L35: 80 | M35: 50 | N35: 130 | O35: 127 | P35: 114 | Q35: 241 | R35: 101 | S35: 111 | T35: 212 | U35: 94 | V35: 100 | W35: 194 | X35: 322 | Y35: 325 | Z35: 647 | AA35: 2558 | AB35: 2495 | AC35: 5053 | AD35: =IF(SUM(F19,R19-F35-R35)=0,"",SUM(F19,R19-F35-R35)) -> 2550 | AE35: 2560 | AF35: 5110 | AG35: =IF(SUM(I19,U19-I35-U35)=0,"",SUM(I19,U19-I35-U35)) -> 2498 | AH35: 2473 | AI35: 4971 | AJ35: 7606 | AK35: 7528 | AL35: 15134
B36: Telesecundaria | C36: 24 | D36: 11 | E36: 35 | F36: 33 | G36: 12 | H36: 45 | I36: 28 | J36: 16 | K36: 44 | L36: 85 | M36: 39 | N36: 124 | O36: 47 | P36: 37 | Q36: 84 | R36: 50 | S36: 47 | T36: 97 | U36: 46 | V36: 36 | W36: 82 | X36: 143 | Y36: 120 | Z36: 263 | AA36: 924 | AB36: 820 | AC36: 1744 | AD36: 856 | AE36: 756 | AF36: 1612 | AG36: 832 | AH36: 817 | AI36: 1649 | AJ36: 2612 | AK36: 2393 | AL36: 5005
E37: =IF(SUM(C37,D37)=0,"",SUM(C37,D37)) ->  | H37: =IF(SUM(F37,G37)=0,"",SUM(F37,G37)) ->  | K37: =IF(SUM(I37,J37)=0,"",SUM(I37,J37)) ->  | L37: =IF(SUM(C37,F37,I37)=0,"",SUM(C37,F37,I37)) ->  | M37: =IF(SUM(D37,G37,J37)=0,"",SUM(SUM(D37,G37,J37))) ->  | N37: =IF(SUM(L37,M37)=0,"",SUM(L37,M37)) ->  | Q37: =IF(SUM(O37,P37)=0,"",SUM(O37,P37)) ->  | T37: =IF(SUM(R37,S37)=0,"",SUM(R37,S37)) ->  | W37: =IF(SUM(U37,V37)=0,"",SUM(U37,V37)) ->  | X37: =IF(SUM(O37,R37,U37)=0,"",SUM(O37,R37,U37)) ->  | Y37: =IF(SUM(P37,S37,V37)=0,"",SUM(SUM(P37,S37,V37))) ->  | Z37: =IF(SUM(X37,Y37)=0,"",SUM(X37,Y37)) ->  | AC37: =IF(SUM(AA37,AB37)=0,"",SUM(AA37,AB37)) ->  | AF37: =IF(SUM(AD37,AE37)=0,"",SUM(AD37,AE37)) ->  | AI37: =IF(SUM(AG37,AH37)=0,"",SUM(AG37,AH37)) ->  | AJ37: =IF(SUM(AA37,AD37,AG37)=0,"",SUM(AA37,AD37,AG37)) ->  | AK37: =IF(SUM(AB37,AE37,AH37)=0,"",SUM(SUM(AB37,AE37,AH37))) ->  | AL37: =IF(SUM(AJ37,AK37)=0,"",SUM(AJ37,AK37)) -> 
B43: TOTAL | C43: =IF(SUM(C33:C42)=0,"",SUM(C33:C42)) -> 90 | D43: 72 | E43: 162 | F43: 100 | G43: 69 | H43: 169 | I43: 103 | J43: 69 | K43: 172 | L43: 293 | M43: 210 | N43: 503 | O43: 292 | P43: 264 | Q43: 556 | R43: 272 | S43: 318 | T43: 590 | U43: 246 | V43: 249 | W43: 495 | X43: 810 | Y43: 831 | Z43: 1641 | AA43: 6808 | AB43: 6618 | AC43: 13426 | AD43: 6765 | AE43: 6779 | AF43: 13544 | AG43: 6509 | AH43: 6588 | AI43: 13097 | AJ43: 20082 | AK43: 19985 | AL43: 40067

Sheet APROV 1
B3: Secretaría de Educación Pública del Estado de Baja California Sur
B4: Dirección de Educación Secundaria
B5: APROVECHAMIENTO Y RIESGO DE NO ACREDITAR
B6: PRIMER GRADO
B7: PERIODO EVALUACIÓN: | N7: =IF(MATRICULA!O6=0,"",MATRICULA!O6) -> CONCENTRADO FINAL
B8: CICLO ESCOLAR : | N8: =IF(MATRICULA!O7=0,"",MATRICULA!O7) -> 2021-2022
A10: DIRECCIÓN: | H10: EDUCACIÓN SECUNDARIA
A11: DIRECTORA: | H11: MTRA. OFELIA ELIZABETH OCHOA ROMERO
A13: Promedio de Aprovechamiento de los Campos de Formación Académica | Z13: Promedio de Aprovechamiento de las Áreas de Desarrollo Personal y Social
A14: Modalidad | B14: Lengua Materna | E14: Matemáticas | H14: Inglés | K14: Ciencias y tecnología (Biología) | N14: Historia | Q14: Geografía | T14: Formación Cívica y Ética | W14: Tecnología I | Z14: Educación Física | AC14: Artes | AF14: Prom. Final
B15: CALIF | E15: CALIF | H15: CALIF | K15: CALIF | N15: CALIF | Q15: CALIF | T15: CALIF | W15: CALIF | Z15: CALIF | AC15: CALIF | AF15: CALIF
A16: =IF(MATRICULA!B17=0,"",MATRICULA!B17) -> Generales Públicas | B16: 8.6 | E16: 8.4 | H16: 8.7 | K16: 8.8 | N16: 8.7 | Q16: 8.7 | T16: 8.8 | W16: 9 | Z16: 9.3 | AC16: 9 | AF16: =IFERROR(ROUND(AVERAGE(B16:AE16),1),"") -> 8.8
A17: =IF(MATRICULA!B18=0,"",MATRICULA!B18) -> Particulares | B17: 8.7 | E17: 8.6 | H17: 8.8 | K17: 9 | N17: 8.9 | Q17: 8.9 | T17: 9.1 | W17: 9.1 | Z17: 9.6 | AC17: 9.5 | AF17: =IFERROR(ROUND(AVERAGE(B17:AE17),1),"") -> 9
A18: Secundarias Técnicas | B18: 8.4 | E18: 8.5 | H18: 8.6 | K18: 8.6 | N18: 8.4 | Q18: 8.6 | T18: 8.6 | W18: 8.7 | Z18: 9.3 | AC18: 8.9 | AF18: 8.7
A19: =IF(MATRICULA!B20=0,"",MATRICULA!B20) -> Telesecundaria | B19: 8.3 | E19: 8.1 | H19: 8.4 | K19: 8.4 | N19: 8.3 | Q19: 8.3 | T19: 8.7 | W19: 9 | Z19: 9.2 | AC19: 9 | AF19: 8.6
A20: =IF(MATRICULA!B21=0,"",MATRICULA!B21) -> 
A21: =IF(MATRICULA!B22=0,"",MATRICULA!B22) -> 
A22: =IF(MATRICULA!B23=0,"",MATRICULA!B23) -> 
A23: =IF(MATRICULA!B24=0,"",MATRICULA!B24) -> 
A24: =IF(MATRICULA!B25=0,"",MATRICULA!B25) -> 
A25: =IF(MATRICULA!B26=0,"",MATRICULA!B26) -> 
A26: Gral. | B26: =IFERROR(ROUND(AVERAGE(B16:D25),1),"") -> 8.5 | E26: =IFERROR(ROUND(AVERAGE(E16:G25),1),"") -> 8.4 | H26: =IFERROR(ROUND(AVERAGE(H16:J25),1),"") -> 8.6 | K26: =IFERROR(ROUND(AVERAGE(K16:M25),1),"") -> 8.7 | N26: =IFERROR(ROUND(AVERAGE(N16:P25),1),"") -> 8.6 | Q26: =IFERROR(ROUND(AVERAGE(Q16:S25),1),"") -> 8.6 | T26: =IFERROR(ROUND(AVERAGE(T16:V25),1),"") -> 8.8 | W26: =IFERROR(ROUND(AVERAGE(W16:Y25),1),"") -> 9 | Z26: =IFERROR(ROUND(AVERAGE(Z16:AB25),1),"") -> 9.4 | AC26: =IFERROR(ROUND(AVERAGE(AC16:AE25),1),"") -> 9.1 | AF26: =IFERROR(ROUND(AVERAGE(AF16:AG25),1),"") -> 8.8
A28: Campos de Formación Académica en riesgo de no acreditar | Z28: Áreas de Desarrollo Personal y Social en situación de riesgo de no acreditar
A29: Modalidad | B29: Lengua Materna | E29: Matemáticas | H29: Inglés | K29: Ciencias y tecnología (Biología) | N29: Historia | Q29: Geografía | T29: Formación Cívica y Ética | W29: Tecnología I | Z29: Educación Física | AC29: Artes | AF29: Total
B30: 5 | C30: 6 | D30: T | E30: 5 | F30: 6 | G30: T | H30: 5 | I30: 6 | J30: T | K30: 5 | L30: 6 | M30: T | N30: 5 | O30: 6 | P30: T | Q30: 5 | R30: 6 | S30: T | T30: 5 | U30: 6 | V30: T | W30: 5 | X30: 6 | Y30: T | Z30: 5 | AA30: 6 | AB30: T | AC30: 5 | AD30: 6 | AE30: T | AF30: 5 | AG30: 6
A31: =IF(MATRICULA!B17=0,"",MATRICULA!B17) -> Generales Públicas | C31: 364 | D31: =IF(SUM(B31,C31)=0,"",SUM(B31,C31)) -> 364 | F31: 588 | G31: =IF(SUM(E31,F31)=0,"",SUM(E31,F31)) -> 588 | I31: 423 | J31: =IF(SUM(H31,I31)=0,"",SUM(H31,I31)) -> 423 | L31: 317 | M31: =IF(SUM(K31,L31)=0,"",SUM(K31,L31)) -> 317 | O31: 316 | P31: =IF(SUM(N31,O31)=0,"",SUM(N31,O31)) -> 316 | R31: 366 | S31: =IF(SUM(Q31,R31)=0,"",SUM(Q31,R31)) -> 366 | U31: 223 | V31: =IF(SUM(T31,U31)=0,"",SUM(T31,U31)) -> 223 | X31: 255 | Y31: =IF(SUM(W31,X31)=0,"",SUM(W31,X31)) -> 255 | AA31: 132 | AB31: =IF(SUM(Z31,AA31)=0,"",SUM(Z31,AA31)) -> 132 | AD31: 294 | AE31: =IF(SUM(AC31,AD31)=0,"",SUM(AC31,AD31)) -> 294 | AF31: =IF(SUM(B31,E31,H31,K31,N31,Q31,T31,W31,Z31,AC31)=0,"",SUM(B31,E31,H31,K31,N31,Q31,T31,W31,Z31,AC31)) ->  | AG31: =IF(SUM(C31,F31,I31,L31,O31,R31,U31,X31,AA31,AD31)=0,"",SUM(C31,F31,I31,L31,O31,R31,U31,X31,AA31,AD31)) -> 3278
A32: =IF(MATRICULA!B18=0,"",MATRICULA!B18) -> Particulares | C32: 67 | D32: =IF(SUM(B32,C32)=0,"",SUM(B32,C32)) -> 67 | F32: 81 | G32: =IF(SUM(E32,F32)=0,"",SUM(E32,F32)) -> 81 | I32: 66 | J32: =IF(SUM(H32,I32)=0,"",SUM(H32,I32)) -> 66 | L32: 20 | M32: =IF(SUM(K32,L32)=0,"",SUM(K32,L32)) -> 20 | O32: 32 | P32: =IF(SUM(N32,O32)=0,"",SUM(N32,O32)) -> 32 | R32: 41 | S32: =IF(SUM(Q32,R32)=0,"",SUM(Q32,R32)) -> 41 | U32: 35 | V32: =IF(SUM(T32,U32)=0,"",SUM(T32,U32)) -> 35 | X32: 60 | Y32: =IF(SUM(W32,X32)=0,"",SUM(W32,X32)) -> 60 | AA32: 10 | AB32: =IF(SUM(Z32,AA32)=0,"",SUM(Z32,AA32)) -> 10 | AD32: 19 | AE32: =IF(SUM(AC32,AD32)=0,"",SUM(AC32,AD32)) -> 19 | AF32: =IF(SUM(B32,E32,H32,K32,N32,Q32,T32,W32,Z32,AC32)=0,"",SUM(B32,E32,H32,K32,N32,Q32,T32,W32,Z32,AC32)) ->  | AG32: =IF(SUM(C32,F32,I32,L32,O32,R32,U32,X32,AA32,AD32)=0,"",SUM(C32,F32,I32,L32,O32,R32,U32,X32,AA32,AD32)) -> 431
A33: =IF(MATRICULA!B19=0,"",MATRICULA!B19) -> Secundaria Técnica | C33: 425 | D33: 425 | F33: 422 | G33: 422 | I33: 417 | J33: 417 | L33: 410 | M33: 410 | O33: 499 | P33: 499 | R33: 336 | S33: 336 | U33: 492 | V33: 492 | X33: 383 | Y33: 383 | AA33: 58 | AB33: 58 | AD33: 176 | AE33: 176 | AG33: 3618
A34: =IF(MATRICULA!B20=0,"",MATRICULA!B20) -> Telesecundaria | C34: 378 | D34: 378 | F34: 413 | G34: 413 | I34: 367 | J34: 367 | L34: 367 | M34: 367 | O34: 443 | P34: 443 | R34: 359 | S34: 359 | U34: 327 | V34: 327 | X34: 302 | Y34: 302 | AA34: 344 | AB34: 344 | AD34: 239 | AE34: 239 | AG34: 3539
A35: =IF(MATRICULA!B21=0,"",MATRICULA!B21) -> 
A36: =IF(MATRICULA!B22=0,"",MATRICULA!B22) -> 
A37: =IF(MATRICULA!B23=0,"",MATRICULA!B23) -> 
A38: =IF(MATRICULA!B24=0,"",MATRICULA!B24) ->  | D38: =IF(SUM(B38,C38)=0,"",SUM(B38,C38)) ->  | G38: =IF(SUM(E38,F38)=0,"",SUM(E38,F38)) ->  | J38: =IF(SUM(H38,I38)=0,"",SUM(H38,I38)) ->  | M38: =IF(SUM(K38,L38)=0,"",SUM(K38,L38)) ->  | P38: =IF(SUM(N38,O38)=0,"",SUM(N38,O38)) ->  | S38: =IF(SUM(Q38,R38)=0,"",SUM(Q38,R38)) ->  | V38: =IF(SUM(T38,U38)=0,"",SUM(T38,U38)) ->  | Y38: =IF(SUM(W38,X38)=0,"",SUM(W38,X38)) ->  | AB38: =IF(SUM(Z38,AA38)=0,"",SUM(Z38,AA38)) ->  | AE38: =IF(SUM(AC38,AD38)=0,"",SUM(AC38,AD38)) ->  | AF38: =IF(SUM(B38,E38,H38,K38,N38,Q38,T38,W38,Z38,AC38)=0,"",SUM(B38,E38,H38,K38,N38,Q38,T38,W38,Z38,AC38)) ->  | AG38: =IF(SUM(C38,F38,I38,L38,O38,R38,U38,X38,AA38,AD38)=0,"",SUM(C38,F38,I38,L38,O38,R38,U38,X38,AA38,AD38)) -> 
A39: =IF(MATRICULA!B25=0,"",MATRICULA!B25) ->  | D39: =IF(SUM(B39,C39)=0,"",SUM(B39,C39)) ->  | G39: =IF(SUM(E39,F39)=0,"",SUM(E39,F39)) ->  | J39: =IF(SUM(H39,I39)=0,"",SUM(H39,I39)) ->  | M39: =IF(SUM(K39,L39)=0,"",SUM(K39,L39)) ->  | P39: =IF(SUM(N39,O39)=0,"",SUM(N39,O39)) ->  | S39: =IF(SUM(Q39,R39)=0,"",SUM(Q39,R39)) ->  | V39: =IF(SUM(T39,U39)=0,"",SUM(T39,U39)) ->  | Y39: =IF(SUM(W39,X39)=0,"",SUM(W39,X39)) ->  | AB39: =IF(SUM(Z39,AA39)=0,"",SUM(Z39,AA39)) ->  | AE39: =IF(SUM(AC39,AD39)=0,"",SUM(AC39,AD39)) ->  | AF39: =IF(SUM(B39,E39,H39,K39,N39,Q39,T39,W39,Z39,AC39)=0,"",SUM(B39,E39,H39,K39,N39,Q39,T39,W39,Z39,AC39)) ->  | AG39: =IF(SUM(C39,F39,I39,L39,O39,R39,U39,X39,AA39,AD39)=0,"",SUM(C39,F39,I39,L39,O39,R39,U39,X39,AA39,AD39)) -> 
A40: =IF(MATRICULA!B26=0,"",MATRICULA!B26) -> 
A41: Total | B41: =IF(SUM(B31:B40)=0,"",SUM(B31:B40)) ->  | C41: 1234 | D41: 1234 | F41: 1504 | G41: 1504 | I41: 1273 | J41: 1273 | L41: 1114 | M41: 1114 | O41: 1290 | P41: 1290 | R41: 1102 | S41: 1102 | U41: 1077 | V41: 1077 | X41: 1000 | Y41: 1000 | AA41: 544 | AB41: 544 | AD41: 728 | AE41: 728 | AG41: 10866
A43: Nota: Para las columnas "Campos de Formación Académica y Áreas de Desarrollo Personal y Social en riesgo de no acreditar" registre la cantidad de cincos o seis que existen en cada campo o área.

Sheet R6
B3: Secretaría de Educación Pública del Estado de Baja California Sur
B4: Dirección de Educación Secundaria
B6: REGISTRO DE ALUMNOS CON CALIFICACIÓN "6" EN UNA O MÁS ASIGNATURAS
B7: PRIMER GRADO
C9: PERIODO DE EVALUACIÓN: | E9: =MATRICULA!O6 -> CONCENTRADO FINAL
C10: CICLO ESCOLAR: | E10: =IF([1]MATRICULA!O7=0,"",[1]MATRICULA!O7) -> 2021-2022
A12: DIRECCIÓN: | C12: =MATRICULA!I10 -> EDUCACIÓN SECUNDARIA
C13: =MATRICULA!I11 -> MTRA. OFELIA ELIZABETH OCHOA ROMERO
A14: DIRECTORA:
A16: REGISTRAR LA CANTIDAD DE ALUMNOS CON CALIFICACIÓN "6" EN UNA O MÁS ASIGNATURAS SEGÚN CORRESPONDA
A17: Modalidad | B17: 1 ASIGNATURA | C17: 2 ASIGNATURAS | D17: 3 ASIGNATURAS | E17: 4 ASIGNATURAS | F17: 5 ASIGNATURAS | G17: 6 O MÁS ASIGNATURAS | H17: TOTAL
A18: Generales Públicas | B18: 400 | C18: 330 | D18: 166 | E18: 96 | F18: 56 | G18: 161 | H18: 1209
A19: Particulares | B19: 68 | C19: 50 | D19: 15 | E19: 13 | F19: 15 | G19: 34 | H19: 195
A20: Secundaria Técnica | B20: 426 | C20: 240 | D20: 168 | E20: 89 | F20: 174 | G20: 373 | H20: 1470
A21: Telesecundaria | B21: 102 | C21: 71 | D21: 49 | E21: 49 | F21: 32 | G21: 171 | H21: =SUM(B21:G21) -> 474
A22: =IF([1]MATRICULA!B26=0,"",[1]MATRICULA!B26) ->  | H22: =IF(SUM(B22:G22)=0,"",SUM(B22:G22)) -> 
A23: TOTAL | B23: =IF(SUM(B18:B22)=0,"",SUM(B18:B22)) -> 996 | C23: 691 | D23: 398 | E23: 247 | F23: 277 | G23: 739 | H23: 3348

Sheet PARTICIPACIÓN 1
B3: Secretaría de Educación Pública del Estado de Baja California Sur
B4: Dirección de Educación Secundaria
B5: NIVELES DE COMUNICACIÓN Y PARTICIPACIÓN DE ALUMNOS
B6: PRIMER GRADO
B7: PERIODO EVALUACIÓN: | N7: =IF('APROV 1'!N7:Z7<>0,'APROV 1'!N7:Z7, "") -> CONCENTRADO FINAL
B8: CICLO ESCOLAR : | N8: =IF('APROV 1'!N8:Z8<>0, 'APROV 1'!N8:Z8, "") -> 2021-2022
A11: DIRECCIÓN: | H11: EDUCACIÓN SECUNDARIA
A12: DIRECTORA: | H12: MTRA. OFELIA ELIZABETH OCHOA ROMERO
A14: COMUNICACIÓN Y PARTICIPACIÓN CON ALUMNOS (Registrar cantidad de alumnos)
A15: Modalidad | D15: COMUNICACIÓN Y PARTICIPACIÓN SOSTENIDA | H15: % | L15: COMUNICACIÓN Y PARTICIPACIÓN INTERMITENTE | P15: % | T15: COMUNICACIÓN PRACTICAMENTE INEXISTENTE | X15: % | AB15: TOTAL | AE15: MATRÍCULA EXISTENCIA
A17: =IF(MATRICULA!B17=0,"",MATRICULA!B17) -> Generales Públicas | D17: 5161 | H17: =IFERROR((D17+E17+F17)/AE17*100,"") -> 94.80161646 | L17: 238 | P17: =IFERROR((L17+M17+N17)/AE17*100,"") -> 4.371785452 | T17: 45 | X17: =IFERROR((T17+U17+V17)/AE17*100,"") -> 0.8265980896 | AB17: =IF(SUM(D17:G17,L17:O17,T17:W17)=0,"",SUM(D17:G17,L17:O17,T17:W17)) -> 5444 | AE17: =IF(MATRICULA!AC33=0,"",MATRICULA!AC33) -> 5444
A18: =IF(MATRICULA!B18=0,"",MATRICULA!B18) -> Particulares | D18: 1179 | H18: =IFERROR((D18+E18+F18)/AE18*100,"") -> 99.49367089 | L18: 6 | P18: =IFERROR((L18+M18+N18)/AE18*100,"") -> 0.5063291139 | T18: 0 | X18: =IFERROR((T18+U18+V18)/AE18*100,"") -> 0 | AB18: =IF(SUM(D18:G18,L18:O18,T18:W18)=0,"",SUM(D18:G18,L18:O18,T18:W18)) -> 1185 | AE18: =IF(MATRICULA!AC34=0,"",MATRICULA!AC34) -> 1185
A19: =IF(MATRICULA!B19=0,"",MATRICULA!B19) -> Secundaria Técnica | D19: 4560 | H19: 90.24341975 | L19: 466 | P19: 9.222244211 | T19: 27 | X19: 0.534336038 | AB19: 5053 | AE19: =IF(MATRICULA!AC35=0,"",MATRICULA!AC35) -> 5053
A20: =IF(MATRICULA!B20=0,"",MATRICULA!B20) -> Telesecundaria | D20: 1624 | H20: 93.11926606 | L20: 106 | P20: 6.077981651 | T20: 14 | X20: 0.8027522936 | AB20: 1744 | AE20: =IF(MATRICULA!AC36=0,"",MATRICULA!AC36) -> 1744
A21: =IF(MATRICULA!B21=0,"",MATRICULA!B21) ->  | AE21: =IF(MATRICULA!AC37=0,"",MATRICULA!AC37) -> 
A22: =IF(MATRICULA!B22=0,"",MATRICULA!B22) ->  | AE22: =IF(MATRICULA!AC38=0,"",MATRICULA!AC38) -> 
A23: =IF(MATRICULA!B23=0,"",MATRICULA!B23) ->  | AE23: =IF(MATRICULA!AC39=0,"",MATRICULA!AC39) -> 
A24: =IF(MATRICULA!B24=0,"",MATRICULA!B24) ->  | AE24: =IF(MATRICULA!AC40=0,"",MATRICULA!AC40) -> 
A25: =IF(MATRICULA!B25=0,"",MATRICULA!B25) ->  | AE25: =IF(MATRICULA!AC41=0,"",MATRICULA!AC41) -> 
A26: =IF(MATRICULA!B26=0,"",MATRICULA!B26) ->  | AE26: =IF(MATRICULA!AC42=0,"",MATRICULA!AC42) -> 
A27: TOTAL | D27: =SUM(D17:D26) -> 12524 | H27: 93.28169224 | L27: =SUM(L17:L26) -> 816 | P27: 6.077759571 | T27: =SUM(T17:T26) -> 86 | X27: 0.6405481901 | AB27: =SUM(AB17:AD26) -> 13426 | AE27: =SUM(AE17:AG26) -> 13426

Sheet Gráfica APROV 1
B3: Secretaría de Educación Pública del Estado de Baja California Sur
B4: Dirección de Educación Secundaria
B5: PRIMER GRADO
B6: PERIODO EVALUACIÓN: | N6: =IF('APROV 1'!N7:Z7<>0,'APROV 1'!N7:Z7, "") -> CONCENTRADO FINAL
B7: CICLO ESCOLAR : | N7: =IF('APROV 1'!N8:Z8<>0, 'APROV 1'!N8:Z8, "") -> 2021-2022
A10: DIRECCIÓN: | H10: EDUCACIÓN SECUNDARIA
A11: DIRECTORA: | H11: MTRA. OFELIA ELIZABETH OCHOA ROMERO
B17: Lengua Materna | C17: Matemáticas | D17: Inglés | E17: Ciencias y tecnología (Biología) | F17: Historia | G17: Geografía | H17: Formación Cívica y Ética | I17: Tecnología I | J17: Educación Física | K17: Artes
B18: ='APROV 1'!B26:D26 -> 8.5 | C18: ='APROV 1'!E26 -> 8.4 | D18: ='APROV 1'!H26 -> 8.6 | E18: ='APROV 1'!K26 -> 8.7 | F18: ='APROV 1'!N26 -> 8.6 | G18: ='APROV 1'!Q26 -> 8.6 | H18: ='APROV 1'!T26 -> 8.8 | I18: ='APROV 1'!W26 -> 9 | J18: ='APROV 1'!Z26 -> 9.4 | K18: ='APROV 1'!AC26 -> 9.1

Sheet Gráfica PART 1
B3: Secretaría de Educación Pública del Estado de Baja California Sur
B4: Dirección de Educación Secundaria
B5: PRIMER GRADO
B6: PERIODO EVALUACIÓN: | N6: =IF('APROV 1'!N7:Z7<>0,'APROV 1'!N7:Z7, "") -> CONCENTRADO FINAL
B7: CICLO ESCOLAR : | N7: =IF('APROV 1'!N8:Z8<>0, 'APROV 1'!N8:Z8, "") -> 2021-2022
A10: DIRECCIÓN: | H10: EDUCACIÓN SECUNDARIA
A11: DIRECTORA: | H11: MTRA. OFELIA ELIZABETH OCHOA ROMERO
D13: COMUNICACIÓN Y PARTICIPACIÓN SOSTENIDA | E13: COMUNICACIÓN Y PARTICIPACIÓN INTERMITENTE | F13: COMUNICACIÓN PRACTICAMENTE INEXISTENTE
D14: ='PARTICIPACIÓN 1'!H27/100 -> 0.9328169224 | E14: ='PARTICIPACIÓN 1'!P27/100 -> 0.06077759571 | F14: ='PARTICIPACIÓN 1'!X27/100 -> 0.006405481901

Sheet APROV 2
B3: Secretaría de Educación Pública del Estado de Baja California Sur
B4: Dirección de Educación Secundaria
B5: APROVECHAMIENTO Y RIESGO DE NO ACREDITAR
B6: SEGUNDO GRADO
B7: PERIODO EVALUACIÓN: | N7: =IF('APROV 1'!N7:Z7<>0,'APROV 1'!N7:Z7, "") -> CONCENTRADO FINAL
B8: CICLO ESCOLAR : | N8: =IF('APROV 1'!N8:Z8<>0, 'APROV 1'!N8:Z8, "") -> 2021-2022
A10: DIRECCIÓN: | H10: EDUCACIÓN SECUNDARIA
A11: DIRECTORA: | H11: MTRA. OFELIA ELIZABETH OCHOA ROMERO
A14: Promedio de Aprovechamiento de los Campos de Formación Académica | W14: Promedio de Aprovechamiento de las Áreas de Desarrollo Personal y Social
A15: Modalidad | B15: Lengua Materna | E15: Matemáticas | H15: Inglés | K15: Ciencias y tecnología (Física) | N15: Historia | Q15: Formación Cívica y Ética | T15: Tecnología II | W15: Educación Física | Z15: Artes | AC15: Prom. Final
B16: CALIF | E16: CALIF | H16: CALIF | K16: CALIF | N16: CALIF | Q16: CALIF | T16: CALIF | W16: CALIF | Z16: CALIF | AC16: CALIF
A17: =IF(MATRICULA!B17=0,"",MATRICULA!B17) -> Generales Públicas | B17: 8.7 | E17: 8.5 | H17: 8.7 | K17: 8.7 | N17: 8.8 | Q17: 8.9 | T17: 9 | W17: 9.3 | Z17: 9.1 | AC17: =IFERROR(ROUND(AVERAGE(B17:AB17),1),"") -> 8.9
A18: =IF(MATRICULA!B18=0,"",MATRICULA!B18) -> Particulares | B18: 8.8 | E18: 8.6 | H18: 8.8 | K18: 8.8 | N18: 8.8 | Q18: 9 | T18: 9.1 | W18: 9.6 | Z18: 9.3 | AC18: 9
A19: =IF(MATRICULA!B19=0,"",MATRICULA!B19) -> Secundaria Técnica | B19: 8.6 | E19: 8.5 | H19: 8.7 | K19: 8.6 | N19: 8.7 | Q19: 8.6 | T19: 8.7 | W19: 9.3 | Z19: 8.9 | AC19: =IFERROR(ROUND(AVERAGE(B19:AB19),1),"") -> 8.7
A20: =IF(MATRICULA!B20=0,"",MATRICULA!B20) -> Telesecundaria | B20: 8.4 | E20: 8.2 | H20: 8.3 | K20: 8.4 | N20: 8.4 | Q20: 8.7 | T20: 9 | W20: 9.1 | Z20: 9 | AC20: 8.6
A21: =IF(MATRICULA!B22=0,"",MATRICULA!B22) -> 
A22: =IF(MATRICULA!B23=0,"",MATRICULA!B23) -> 
A23: =IF(MATRICULA!B24=0,"",MATRICULA!B24) ->  | AC23: =IFERROR(ROUND(AVERAGE(B23:AB23),1),"") -> 
A24: =IF(MATRICULA!B25=0,"",MATRICULA!B25) -> 
A25: =IF(MATRICULA!B26=0,"",MATRICULA!B26) -> 
A26: Gral. | B26: =IFERROR(ROUND(AVERAGE(B17:D25),1),"") -> 8.6 | E26: =IFERROR(ROUND(AVERAGE(E17:G25),1),"") -> 8.5 | H26: =IFERROR(ROUND(AVERAGE(H17:J25),1),"") -> 8.6 | K26: =IFERROR(ROUND(AVERAGE(K17:M25),1),"") -> 8.6 | N26: =IFERROR(ROUND(AVERAGE(N17:P25),1),"") -> 8.7 | Q26: =IFERROR(ROUND(AVERAGE(Q17:S25),1),"") -> 8.8 | T26: =IFERROR(ROUND(AVERAGE(T17:V25),1),"") -> 9 | W26: =IFERROR(ROUND(AVERAGE(W17:Y25),1),"") -> 9.3 | Z26: =IFERROR(ROUND(AVERAGE(Z17:AB25),1),"") -> 9.1 | AC26: =IFERROR(ROUND(AVERAGE(AC17:AD25),1),"") -> 8.8
A28: Campos de Formación Académica en situacion de riesgo de no acreditar | W28: Áreas de Desarrollo Personal y Social en situación de riesgo de no acreditar
A29: Modalidad | B29: Lengua Materna | E29: Matemáticas | H29: Inglés | K29: Ciencias y tecnología (Física) | N29: Historia | Q29: Formación Cívica y Ética | T29: Tecnología II | W29: Educación Física | Z29: Artes | AC29: Total
B30: 5 | C30: 6 | D30: T | E30: 5 | F30: 6 | G30: T | H30: 5 | I30: 6 | J30: T | K30: 5 | L30: 6 | M30: T | N30: 5 | O30: 6 | P30: T | Q30: 5 | R30: 6 | S30: T | T30: 5 | U30: 6 | V30: T | W30: 5 | X30: 6 | Y30: T | Z30: 5 | AA30: 6 | AB30: T | AC30: 5 | AD30: 6
A31: =IF(MATRICULA!B17=0,"",MATRICULA!B17) -> Generales Públicas | C31: 570 | D31: =IF(SUM(B31,C31)=0,"",SUM(B31,C31)) -> 570 | F31: 628 | G31: =IF(SUM(E31,F31)=0,"",SUM(E31,F31)) -> 628 | I31: 650 | J31: =IF(SUM(H31,I31)=0,"",SUM(H31,I31)) -> 650 | L31: 584 | M31: =IF(SUM(K31,L31)=0,"",SUM(K31,L31)) -> 584 | O31: 492 | P31: =IF(SUM(N31,O31)=0,"",SUM(N31,O31)) -> 492 | R31: 391 | S31: =IF(SUM(Q31,R31)=0,"",SUM(Q31,R31)) -> 391 | U31: 433 | V31: =IF(SUM(T31,U31)=0,"",SUM(T31,U31)) -> 433 | X31: 171 | Y31: =IF(SUM(W31,X31)=0,"",SUM(W31,X31)) -> 171 | AA31: 411 | AB31: =IF(SUM(Z31,AA31)=0,"",SUM(Z31,AA31)) -> 411 | AC31: =IF(SUM(B31,E31,H31,K31,N31,Q31,T31,W31,Z31)=0,"",SUM(B31,E31,H31,K31,N31,Q31,T31,W31,Z31)) ->  | AD31: =IF(SUM(C31,F31,I31,L31,O31,R31,U31,X31,AA31)=0,"",SUM(C31,F31,I31,L31,O31,R31,U31,X31,AA31)) -> 4330
A32: =IF(MATRICULA!B18=0,"",MATRICULA!B18) -> Particulares | C32: 33 | D32: 33 | F32: 83 | G32: 83 | I32: 45 | J32: 45 | L32: 52 | M32: 52 | O32: 31 | P32: 31 | R32: 16 | S32: 16 | U32: 43 | V32: 43 | X32: 11 | Y32: 11 | AA32: 32 | AB32: 32 | AD32: 346
A33: =IF(MATRICULA!B19=0,"",MATRICULA!B19) -> Secundaria Técnica | C33: 433 | D33: 433 | F33: 505 | G33: 505 | I33: 410 | J33: 410 | L33: 425 | M33: 425 | O33: 375 | P33: 375 | R33: 512 | S33: 512 | U33: 320 | V33: 320 | X33: 94 | Y33: 94 | AA33: 179 | AB33: 179 | AD33: 3253
A34: =IF(MATRICULA!B20=0,"",MATRICULA!B20) -> Telesecundaria | C34: 256 | D34: 256 | F34: 307 | G34: 307 | I34: 289 | J34: 289 | L34: 265 | M34: 265 | O34: 273 | P34: 273 | R34: 233 | S34: 233 | U34: 189 | V34: 189 | X34: 201 | Y34: 201 | AA34: 216 | AB34: 216 | AD34: 2229
A35: =IF(MATRICULA!B22=0,"",MATRICULA!B22) -> 
A36: =IF(MATRICULA!B23=0,"",MATRICULA!B23) -> 
A37: =IF(MATRICULA!B24=0,"",MATRICULA!B24) ->  | D37: =IF(SUM(B37,C37)=0,"",SUM(B37,C37)) ->  | G37: =IF(SUM(E37,F37)=0,"",SUM(E37,F37)) ->  | J37: =IF(SUM(H37,I37)=0,"",SUM(H37,I37)) ->  | M37: =IF(SUM(K37,L37)=0,"",SUM(K37,L37)) ->  | P37: =IF(SUM(N37,O37)=0,"",SUM(N37,O37)) ->  | S37: =IF(SUM(Q37,R37)=0,"",SUM(Q37,R37)) ->  | V37: =IF(SUM(T37,U37)=0,"",SUM(T37,U37)) ->  | Y37: =IF(SUM(W37,X37)=0,"",SUM(W37,X37)) ->  | AB37: =IF(SUM(Z37,AA37)=0,"",SUM(Z37,AA37)) ->  | AC37: =IF(SUM(B37,E37,H37,K37,N37,Q37,T37,W37,Z37)=0,"",SUM(B37,E37,H37,K37,N37,Q37,T37,W37,Z37)) -> 
A38: =IF(MATRICULA!B25=0,"",MATRICULA!B25) -> 
A39: =IF(MATRICULA!B26=0,"",MATRICULA!B26) -> 
A40: Total | B40: =IF(SUM(B31:B39)=0,"",SUM(B31:B39)) ->  | C40: 1292 | D40: 1292 | F40: 1523 | G40: 1523 | I40: 1394 | J40: 1394 | L40: 1326 | M40: 1326 | O40: 1171 | P40: 1171 | R40: 1152 | S40: 1152 | U40: 985 | V40: 985 | X40: 477 | Y40: 477 | AA40: 838 | AB40: 838 | AD40: 10158
A42: Nota: Para las columnas "Campos de Formación Académica y Áreas de Desarrollo Personal y Social en riesgo de no acreditar" registre la cantidad de cincos o seis que existen en cada campo o área.

Sheet R6 (2)
B3: Secretaría de Educación Pública del Estado de Baja California Sur
B4: Dirección de Educación Secundaria
B6: REGISTRO DE ALUMNOS CON CALIFICACIÓN "6" EN UNA O MÁS ASIGNATURAS
B7: SEGUNDO GRADO
C9: PERIODO DE EVALUACIÓN: | E9: =MATRICULA!O6 -> CONCENTRADO FINAL
C10: CICLO ESCOLAR: | E10: =IF([1]MATRICULA!O7=0,"",[1]MATRICULA!O7) -> 2021-2022
A12: DIRECCIÓN: | C12: =MATRICULA!I10 -> EDUCACIÓN SECUNDARIA
C13: =MATRICULA!I11 -> MTRA. OFELIA ELIZABETH OCHOA ROMERO
A14: DIRECTORA:
A16: REGISTRAR LA CANTIDAD DE ALUMNOS CON CALIFICACIÓN "6" EN UNA O MÁS ASIGNATURAS SEGÚN CORRESPONDA
A17: Modalidad | B17: 1 ASIGNATURA | C17: 2 ASIGNATURAS | D17: 3 ASIGNATURAS | E17: 4 ASIGNATURAS | F17: 5 ASIGNATURAS | G17: 6 O MÁS ASIGNATURAS | H17: TOTAL
A18: Generales Públicas | B18: 461 | C18: 226 | D18: 126 | E18: 100 | F18: 69 | G18: 150 | H18: 1132
A19: Particulares | B19: 73 | C19: 43 | D19: 16 | E19: 13 | F19: 8 | G19: 11 | H19: 164
A20: Secundaria Técnica | B20: 358 | C20: 217 | D20: 110 | E20: 77 | F20: 45 | G20: 177 | H20: 984
A21: Telesecundaria | B21: 76 | C21: 47 | D21: 37 | E21: 29 | F21: 15 | G21: 95 | H21: 299
A22: =IF([1]MATRICULA!B26=0,"",[1]MATRICULA!B26) ->  | H22: =IF(SUM(B22:G22)=0,"",SUM(B22:G22)) -> 
A23: TOTAL | B23: =IF(SUM(B18:B22)=0,"",SUM(B18:B22)) -> 968 | C23: 533 | D23: 289 | E23: 219 | F23: 137 | G23: 433 | H23: 2579

Sheet PARTICIPACIÓN 2
B3: Secretaría de Educación Pública del Estado de Baja California Sur
B4: Dirección de Educación Secundaria
B5: NIVELES DE COMUNICACIÓN Y PARTICIPACIÓN DE ALUMNOS
B6: SEGUNDO GRADO
B7: PERIODO EVALUACIÓN: | N7: =IF('APROV 1'!N7:Z7<>0,'APROV 1'!N7:Z7, "") -> CONCENTRADO FINAL
B8: CICLO ESCOLAR : | N8: =IF('APROV 1'!N8:Z8<>0, 'APROV 1'!N8:Z8, "") -> 2021-2022
A11: DIRECCIÓN: | H11: EDUCACIÓN SECUNDARIA
A12: DIRECTORA: | H12: MTRA. OFELIA ELIZABETH OCHOA ROMERO
A14: COMUNICACIÓN Y PARTICIPACIÓN CON ALUMNOS (Registrar cantidad de alumnos)
A15: Modalidad | D15: COMUNICACIÓN Y PARTICIPACIÓN SOSTENIDA | H15: % | L15: COMUNICACIÓN Y PARTICIPACIÓN INTERMITENTE | P15: % | T15: COMUNICACIÓN PRACTICAMENTE INEXISTENTE | X15: % | AB15: TOTAL | AE15: MATRÍCULA EXISTENCIA
A17: =IF(MATRICULA!B17=0,"",MATRICULA!B17) -> Generales Públicas | D17: 5336 | H17: =IFERROR((D17+E17+F17)/AE17*100,"") -> 94.79481258 | L17: 246 | P17: =IFERROR((L17+M17+N17)/AE17*100,"") -> 4.370225617 | T17: 47 | X17: =IFERROR((T17+U17+V17)/AE17*100,"") -> 0.8349618049 | AB17: =IF(SUM(D17:G17,L17:O17,T17:W17)=0,"",SUM(D17:G17,L17:O17,T17:W17)) -> 5629 | AE17: =IF(MATRICULA!AF33=0,"",MATRICULA!AF33) -> 5629
A18: =IF(MATRICULA!B18=0,"",MATRICULA!B18) -> Particulares | D18: 1190 | H18: =IFERROR((D18+E18+F18)/AE18*100,"") -> 99.74853311 | L18: 3 | P18: =IFERROR((L18+M18+N18)/AE18*100,"") -> 0.2514668902 | T18: 0 | X18: =IFERROR((T18+U18+V18)/AE18*100,"") -> 0 | AB18: =IF(SUM(D18:G18,L18:O18,T18:W18)=0,"",SUM(D18:G18,L18:O18,T18:W18)) -> 1193 | AE18: =IF(MATRICULA!AF34=0,"",MATRICULA!AF34) -> 1193
A19: =IF(MATRICULA!B19=0,"",MATRICULA!B19) -> Secundaria Técnica | D19: 4664 | H19: 91.27201566 | L19: 407 | P19: 7.964774951 | T19: 39 | X19: 0.7632093933 | AB19: 5110 | AE19: =IF(MATRICULA!AF35=0,"",MATRICULA!AF35) -> 5110
A20: =IF(MATRICULA!B20=0,"",MATRICULA!B20) -> Telesecundaria | D20: 1512 | H20: 93.79652605 | L20: 81 | P20: 5.024813896 | T20: 19 | X20: 1.17866005 | AB20: 1612 | AE20: =IF(MATRICULA!AF36=0,"",MATRICULA!AF36) -> 1612
A21: =IF(MATRICULA!B21=0,"",MATRICULA!B21) ->  | AE21: =IF(MATRICULA!AF37=0,"",MATRICULA!AF37) -> 
A22: =IF(MATRICULA!B22=0,"",MATRICULA!B22) ->  | AE22: =IF(MATRICULA!AF38=0,"",MATRICULA!AF38) -> 
A23: =IF(MATRICULA!B23=0,"",MATRICULA!B23) ->  | AE23: =IF(MATRICULA!AF39=0,"",MATRICULA!AF39) -> 
A24: =IF(MATRICULA!B24=0,"",MATRICULA!B24) ->  | AE24: =IF(MATRICULA!AF40=0,"",MATRICULA!AF40) -> 
A25: =IF(MATRICULA!B25=0,"",MATRICULA!B25) ->  | AE25: =IF(MATRICULA!AF41=0,"",MATRICULA!AF41) -> 
A26: =IF(MATRICULA!B26=0,"",MATRICULA!B26) ->  | AE26: =IF(MATRICULA!AF42=0,"",MATRICULA!AF42) -> 
A27: TOTAL | D27: =SUM(D17:D26) -> 12702 | H27: 93.78322504 | L27: =SUM(L17:L26) -> 737 | P27: 5.441523922 | T27: =SUM(T17:T26) -> 105 | X27: 0.7752510337 | AB27: =SUM(AB17:AD26) -> 13544 | AE27: =SUM(AE17:AG26) -> 13544

Sheet Gráfica APROV 2
B3: Secretaría de Educación Pública del Estado de Baja California Sur
B4: Dirección de Educación Secundaria
B5: SEGUNDO GRADO
A9: DIRECCIÓN: | H9: EDUCACIÓN SECUNDARIA
A10: DIRECTORA: | H10: MTRA. OFELIA ELIZABETH OCHOA ROMERO
B13: Lengua Materna | C13: Matemáticas | D13: Inglés | E13: Ciencias y tecnología (Física) | F13: Historia | G13: Formación Cívica y Ética | H13: Tecnología II | I13: Educación Física | J13: Artes
B14: ='APROV 2'!B26:D26 -> 8.6 | C14: ='APROV 2'!E26 -> 8.5 | D14: ='APROV 2'!H26 -> 8.6 | E14: ='APROV 2'!K26 -> 8.6 | F14: ='APROV 2'!N26 -> 8.7 | G14: ='APROV 2'!Q26 -> 8.8 | H14: ='APROV 2'!T26 -> 9 | I14: ='APROV 2'!W26 -> 9.3 | J14: ='APROV 2'!Z26 -> 9.1

Sheet Gráfica PART 2
B3: Secretaría de Educación Pública del Estado de Baja California Sur
B4: Dirección de Educación Secundaria
B5: SEGUNDO GRADO
B6: PERIODO EVALUACIÓN: | N6: =IF('APROV 1'!N7:Z7<>0,'APROV 1'!N7:Z7, "") -> CONCENTRADO FINAL
B7: CICLO ESCOLAR : | N7: =IF('APROV 1'!N8:Z8<>0, 'APROV 1'!N8:Z8, "") -> 2021-2022
A10: DIRECCIÓN: | H10: EDUCACIÓN SECUNDARIA
A11: DIRECTORA: | H11: MTRA. OFELIA ELIZABETH OCHOA ROMERO
D13: COMUNICACIÓN Y PARTICIPACIÓN SOSTENIDA | E13: COMUNICACIÓN Y PARTICIPACIÓN INTERMITENTE | F13: COMUNICACIÓN PRACTICAMENTE INEXISTENTE
D14: ='PARTICIPACIÓN 2'!H27/100 -> 0.9378322504 | E14: ='PARTICIPACIÓN 2'!P27/100 -> 0.05441523922 | F14: ='PARTICIPACIÓN 2'!X27/100 -> 0.007752510337

Sheet APROV 3
B3: Secretaría de Educación Pública del Estado de Baja California Sur
B4: Dirección de Educación Secundaria
B5: APROVECHAMIENTO Y RIESGO DE NO ACREDITAR
B6: TERCER GRADO
B7: PERIODO EVALUACIÓN: | N7: =IF('APROV 1'!N7:Z7<>0,'APROV 1'!N7:Z7, "") -> CONCENTRADO FINAL
B8: CICLO ESCOLAR : | N8: =IF('APROV 1'!N8:Z8<>0, 'APROV 1'!N8:Z8, "") -> 2021-2022
A10: DIRECCIÓN: | H10: EDUCACIÓN SECUNDARIA
A11: DIRECTORA: | H11: MTRA. OFELIA ELIZABETH OCHOA ROMERO
A13: Promedio de Aprovechamiento de los Campos de Formación Académica | W13: Promedio de Aprovechamiento de las Áreas de Desarrollo Personal y Social
A14: Zona escolar | B14: Español III | E14: Matemáticas III | H14: Segunda Lengua: Inglés III | K14: Ciencias III (Énfasis en Química) | N14: Historia II | Q14: Formación Cívica y Ética II | T14: Tecnología III | W14: Educación Física III | Z14: Artes III | AC14: Prom. Final
B15: CALIF | E15: CALIF | H15: CALIF | K15: CALIF | N15: CALIF | Q15: CALIF | T15: CALIF | W15: CALIF | Z15: CALIF | AC15: CALIF
A16: =IF(MATRICULA!B17=0,"",MATRICULA!B17) -> Generales Públicas | B16: 8.6 | E16: 8.4 | H16: 8.7 | K16: 8.7 | N16: 8.8 | Q16: 8.7 | T16: 8.9 | W16: 9.3 | Z16: 9 | AC16: =IFERROR(ROUND(AVERAGE(B16:AB16),1),"") -> 8.8
A17: =IF(MATRICULA!B18=0,"",MATRICULA!B18) -> Particulares | B17: 8.8 | E17: 8.5 | H17: 8.7 | K17: 8.7 | N17: 8.9 | Q17: 9 | T17: 9.1 | W17: 9.6 | Z17: 9.3 | AC17: 9
A18: =IF(MATRICULA!B19=0,"",MATRICULA!B19) -> Secundaria Técnica | B18: 8.6 | E18: 8.4 | H18: 8.6 | K18: 8.5 | N18: 8.6 | Q18: 8.6 | T18: 8.8 | W18: 9.3 | Z18: 8.9 | AC18: 8.7
A19: =IF(MATRICULA!B20=0,"",MATRICULA!B20) -> Telesecundaria | B19: 8.3 | E19: 8.2 | H19: 8.3 | K19: 8.3 | N19: 8.3 | Q19: 8.6 | T19: 8.9 | W19: 9 | Z19: 8.9 | AC19: 8.5
A20: =IF(MATRICULA!B21=0,"",MATRICULA!B21) -> 
A21: =IF(MATRICULA!B22=0,"",MATRICULA!B22) -> 
A22: =IF(MATRICULA!B23=0,"",MATRICULA!B23) -> 
A23: =IF(MATRICULA!B24=0,"",MATRICULA!B24) ->  | AC23: =IFERROR(ROUND(AVERAGE(B23:AB23),1),"") -> 
A24: =IF(MATRICULA!B25=0,"",MATRICULA!B25) -> 
A25: =IF(MATRICULA!B26=0,"",MATRICULA!B26) -> 
A26: Gral. | B26: =IFERROR(ROUND(AVERAGE(B16:D25),1),"") -> 8.6 | E26: =IFERROR(ROUND(AVERAGE(E16:G25),1),"") -> 8.4 | H26: =IFERROR(ROUND(AVERAGE(H16:J25),1),"") -> 8.6 | K26: =IFERROR(ROUND(AVERAGE(K16:M25),1),"") -> 8.6 | N26: =IFERROR(ROUND(AVERAGE(N16:P25),1),"") -> 8.7 | Q26: =IFERROR(ROUND(AVERAGE(Q16:S25),1),"") -> 8.7 | T26: =IFERROR(ROUND(AVERAGE(T16:V25),1),"") -> 8.9 | W26: =IFERROR(ROUND(AVERAGE(W16:Y25),1),"") -> 9.3 | Z26: =IFERROR(ROUND(AVERAGE(Z16:AB25),1),"") -> 9 | AC26: =IFERROR(ROUND(AVERAGE(AC16:AD25),1),"") -> 8.8
A28: Campos de Formación Académica en situacion de riesgo de no acreditar | W28: Áreas de Desarrollo Personal y Social en situación de riesgo de no acreditar
A29: Zona escolar | B29: Español III | E29: Matemáticas III | H29: Segunda Lengua: Inglés III | K29: Ciencias III (Énfasis en Química) | N29: Historia II | Q29: Formación Cívica y Ética II | T29: Tecnología III | W29: Educación Física III | Z29: Artes III | AC29: Total
B30: 5 | C30: 6 | D30: T | E30: 5 | F30: 6 | G30: T | H30: 5 | I30: 6 | J30: T | K30: 5 | L30: 6 | M30: T | N30: 5 | O30: 6 | P30: T | Q30: 5 | R30: 6 | S30: T | T30: 5 | U30: 6 | V30: T | W30: 5 | X30: 6 | Y30: T | Z30: 5 | AA30: 6 | AB30: T | AC30: 5 | AD30: 6
A31: =IF(MATRICULA!B17=0,"",MATRICULA!B17) -> Generales Públicas | C31: 594 | D31: =IF(SUM(B31,C31)=0,"",SUM(B31,C31)) -> 594 | F31: 735 | G31: =IF(SUM(E31,F31)=0,"",SUM(E31,F31)) -> 735 | I31: 475 | J31: =IF(SUM(H31,I31)=0,"",SUM(H31,I31)) -> 475 | L31: 582 | M31: =IF(SUM(K31,L31)=0,"",SUM(K31,L31)) -> 582 | O31: 459 | P31: =IF(SUM(N31,O31)=0,"",SUM(N31,O31)) -> 459 | R31: 445 | S31: =IF(SUM(Q31,R31)=0,"",SUM(Q31,R31)) -> 445 | U31: 445 | V31: =IF(SUM(T31,U31)=0,"",SUM(T31,U31)) -> 445 | X31: 227 | Y31: =IF(SUM(W31,X31)=0,"",SUM(W31,X31)) -> 227 | AA31: 417 | AB31: =IF(SUM(Z31,AA31)=0,"",SUM(Z31,AA31)) -> 417 | AC31: =IF(SUM(B31,E31,H31,K31,N31,Q31,T31,W31,Z31)=0,"",SUM(B31,E31,H31,K31,N31,Q31,T31,W31,Z31)) ->  | AD31: =IF(SUM(C31,F31,I31,L31,O31,R31,U31,X31,AA31)=0,"",SUM(C31,F31,I31,L31,O31,R31,U31,X31,AA31)) -> 4379
A32: =IF(MATRICULA!B18=0,"",MATRICULA!B18) -> Particulares | C32: 38 | D32: 38 | F32: 110 | G32: 110 | I32: 67 | J32: 67 | L32: 72 | M32: 72 | O32: 33 | P32: 33 | R32: 33 | S32: 33 | U32: 40 | V32: 40 | X32: 10 | Y32: 10 | AA32: 13 | AB32: 13 | AD32: 416
A33: =IF(MATRICULA!B19=0,"",MATRICULA!B19) -> Secundaria Técnica | C33: 498 | D33: 498 | F33: 676 | G33: 676 | I33: 578 | J33: 578 | L33: 640 | M33: 640 | O33: 501 | P33: 501 | R33: 588 | S33: 588 | U33: 368 | V33: 368 | X33: 144 | Y33: 144 | AA33: 272 | AB33: 272 | AD33: 4265
A34: =IF(MATRICULA!B20=0,"",MATRICULA!B20) -> Telesecundaria | C34: 401 | D34: 401 | F34: 437 | G34: 437 | I34: 410 | J34: 410 | L34: 402 | M34: 402 | O34: 426 | P34: 426 | R34: 366 | S34: 366 | U34: 330 | V34: 330 | X34: 319 | Y34: 319 | AA34: 335 | AB34: 335 | AD34: 3426
A35: =IF(MATRICULA!B21=0,"",MATRICULA!B21) -> 
A36: =IF(MATRICULA!B22=0,"",MATRICULA!B22) -> 
A37: =IF(MATRICULA!B23=0,"",MATRICULA!B23) -> 
A38: =IF(MATRICULA!B24=0,"",MATRICULA!B24) ->  | D38: =IF(SUM(B38,C38)=0,"",SUM(B38,C38)) ->  | G38: =IF(SUM(E38,F38)=0,"",SUM(E38,F38)) ->  | J38: =IF(SUM(H38,I38)=0,"",SUM(H38,I38)) ->  | M38: =IF(SUM(K38,L38)=0,"",SUM(K38,L38)) ->  | P38: =IF(SUM(N38,O38)=0,"",SUM(N38,O38)) ->  | S38: =IF(SUM(Q38,R38)=0,"",SUM(Q38,R38)) ->  | V38: =IF(SUM(T38,U38)=0,"",SUM(T38,U38)) ->  | Y38: =IF(SUM(W38,X38)=0,"",SUM(W38,X38)) ->  | AB38: =IF(SUM(Z38,AA38)=0,"",SUM(Z38,AA38)) ->  | AC38: =IF(SUM(B38,E38,H38,K38,N38,Q38,T38,W38,Z38)=0,"",SUM(B38,E38,H38,K38,N38,Q38,T38,W38,Z38)) -> 
A39: =IF(MATRICULA!B25=0,"",MATRICULA!B25) -> 
A40: =IF(MATRICULA!B26=0,"",MATRICULA!B26) -> 
A41: Total | B41: =IF(SUM(B31:B40)=0,"",SUM(B31:B40)) ->  | C41: 1531 | D41: 1531 | F41: 1958 | G41: 1958 | I41: 1530 | J41: 1530 | L41: 1696 | M41: 1696 | O41: 1419 | P41: 1419 | R41: 1432 | S41: 1432 | U41: 1183 | V41: 1183 | X41: 700 | Y41: 700 | AA41: 1037 | AB41: 1037 | AD41: 12486
A42: Nota: Para las columnas "Campos de Formación Académica y Áreas de Desarrollo Personal y Social en riesgo de no acreditar" registre la cantidad de cincos o seis que existen en cada campo o área.

Sheet R6 (3)
B3: Secretaría de Educación Pública del Estado de Baja California Sur
B4: Dirección de Educación Secundaria
B6: REGISTRO DE ALUMNOS CON CALIFICACIÓN "6" EN UNA O MÁS ASIGNATURAS
B7: TERCER GRADO
C9: PERIODO DE EVALUACIÓN: | E9: =MATRICULA!O6 -> CONCENTRADO FINAL
C10: CICLO ESCOLAR: | E10: =IF([1]MATRICULA!O7=0,"",[1]MATRICULA!O7) -> 2021-2022
A12: DIRECCIÓN: | C12: =MATRICULA!I10 -> EDUCACIÓN SECUNDARIA
C13: =MATRICULA!I11 -> MTRA. OFELIA ELIZABETH OCHOA ROMERO
A14: DIRECTORA:
A16: REGISTRAR LA CANTIDAD DE ALUMNOS CON CALIFICACIÓN "6" EN UNA O MÁS ASIGNATURAS SEGÚN CORRESPONDA
A17: Modalidad | B17: 1 ASIGNATURA | C17: 2 ASIGNATURAS | D17: 3 ASIGNATURAS | E17: 4 ASIGNATURAS | F17: 5 ASIGNATURAS | G17: 6 O MÁS ASIGNATURAS | H17: TOTAL
A18: Generales Públicas | B18: 414 | C18: 219 | D18: 140 | E18: 87 | F18: 69 | G18: 111 | H18: 1040
A19: Particulares | B19: 48 | C19: 33 | D19: 12 | E19: 14 | F19: 17 | G19: 3 | H19: 127
A20: Secundaria Técnica | B20: 446 | C20: 231 | D20: 144 | E20: 104 | F20: 53 | G20: 229 | H20: 1207
A21: Telesecundaria | B21: 75 | C21: 62 | D21: 34 | E21: 42 | F21: 29 | G21: 203 | H21: 445
A22: =IF([1]MATRICULA!B26=0,"",[1]MATRICULA!B26) ->  | H22: =IF(SUM(B22:G22)=0,"",SUM(B22:G22)) -> 
A23: TOTAL | B23: =IF(SUM(B18:B22)=0,"",SUM(B18:B22)) -> 983 | C23: 545 | D23: 330 | E23: 247 | F23: 168 | G23: 546 | H23: 2819

Sheet PARTICIPACIÓN 3
B3: Secretaría de Educación Pública del Estado de Baja California Sur
B4: Dirección de Educación Secundaria
B5: NIVELES DE COMUNICACIÓN Y PARTICIPACIÓN DE ALUMNOS
B6: TERCER GRADO
B7: PERIODO EVALUACIÓN: | N7: =IF('APROV 1'!N7:Z7<>0,'APROV 1'!N7:Z7, "") -> CONCENTRADO FINAL
B8: CICLO ESCOLAR : | N8: =IF('APROV 1'!N8:Z8<>0, 'APROV 1'!N8:Z8, "") -> 2021-2022
A11: DIRECCIÓN: | H11: EDUCACIÓN SECUNDARIA
A12: DIRECTORA: | H12: MTRA. OFELIA ELIZABETH OCHOA ROMERO
A14: COMUNICACIÓN Y PARTICIPACIÓN CON ALUMNOS (Registrar cantidad de alumnos)
A15: Modalidad | D15: COMUNICACIÓN Y PARTICIPACIÓN SOSTENIDA | H15: % | L15: COMUNICACIÓN Y PARTICIPACIÓN INTERMITENTE | P15: % | T15: COMUNICACIÓN PRACTICAMENTE INEXISTENTE | X15: % | AB15: TOTAL | AE15: MATRÍCULA EXISTENCIA
A17: =IF(MATRICULA!B17=0,"",MATRICULA!B17) -> Generales Públicas | D17: 4998 | H17: =IFERROR((D17+E17+F17)/AE17*100,"") -> 94.56953642 | L17: 244 | P17: =IFERROR((L17+M17+N17)/AE17*100,"") -> 4.616840114 | T17: 43 | X17: =IFERROR((T17+U17+V17)/AE17*100,"") -> 0.8136234626 | AB17: =IF(SUM(D17:G17,L17:O17,T17:W17)=0,"",SUM(D17:G17,L17:O17,T17:W17)) -> 5285 | AE17: =IF(MATRICULA!AI33=0,"",MATRICULA!AI33) -> 5285
A18: =IF(MATRICULA!B18=0,"",MATRICULA!B18) -> Particulares | D18: 1184 | H18: =IFERROR((D18+E18+F18)/AE18*100,"") -> 99.32885906 | L18: 8 | P18: =IFERROR((L18+M18+N18)/AE18*100,"") -> 0.6711409396 | T18: 0 | X18: =IFERROR((T18+U18+V18)/AE18*100,"") -> 0 | AB18: =IF(SUM(D18:G18,L18:O18,T18:W18)=0,"",SUM(D18:G18,L18:O18,T18:W18)) -> 1192 | AE18: =IF(MATRICULA!AI34=0,"",MATRICULA!AI34) -> 1192
A19: =IF(MATRICULA!B19=0,"",MATRICULA!B19) -> Secundaria Técnica | D19: 4477 | H19: 90.0623617 | L19: 468 | P19: 9.414604707 | T19: 26 | X19: 0.5230335949 | AB19: 4971 | AE19: =IF(MATRICULA!AI35=0,"",MATRICULA!AI35) -> 4971
A20: =IF(MATRICULA!B20=0,"",MATRICULA!B20) -> Telesecundaria | D20: 1518 | H20: 92.05579139 | L20: 116 | P20: 7.034566404 | T20: 15 | X20: 0.9096422074 | AB20: 1649 | AE20: =IF(MATRICULA!AI36=0,"",MATRICULA!AI36) -> 1649
A21: =IF(MATRICULA!B21=0,"",MATRICULA!B21) ->  | AE21: =IF(MATRICULA!AI37=0,"",MATRICULA!AI37) -> 
A22: =IF(MATRICULA!B22=0,"",MATRICULA!B22) ->  | AE22: =IF(MATRICULA!AI38=0,"",MATRICULA!AI38) -> 
A23: =IF(MATRICULA!B23=0,"",MATRICULA!B23) ->  | AE23: =IF(MATRICULA!AI39=0,"",MATRICULA!AI39) -> 
A24: =IF(MATRICULA!B24=0,"",MATRICULA!B24) ->  | AE24: =IF(MATRICULA!AI40=0,"",MATRICULA!AI40) -> 
A25: =IF(MATRICULA!B25=0,"",MATRICULA!B25) ->  | AE25: =IF(MATRICULA!AI41=0,"",MATRICULA!AI41) -> 
A26: =IF(MATRICULA!B26=0,"",MATRICULA!B26) ->  | AE26: =IF(MATRICULA!AI42=0,"",MATRICULA!AI42) -> 
A27: TOTAL | D27: =SUM(D17:D26) -> 12177 | H27: 92.97549057 | L27: =SUM(L17:L26) -> 836 | P27: 6.383141177 | T27: =SUM(T17:T26) -> 84 | X27: 0.6413682523 | AB27: =SUM(AB17:AD26) -> 13097 | AE27: =SUM(AE17:AG26) -> 13097

Sheet Gráfica APROV 3
B3: Secretaría de Educación Pública del Estado de Baja California Sur
B4: Dirección de Educación Secundaria
B5: TERCER GRADO
B6: PERIODO EVALUACIÓN: | N6: =IF('APROV 1'!N7:Z7<>0,'APROV 1'!N7:Z7, "") -> CONCENTRADO FINAL
B7: CICLO ESCOLAR : | N7: =IF('APROV 1'!N8:Z8<>0, 'APROV 1'!N8:Z8, "") -> 2021-2022
A9: DIRECCIÓN: | H9: EDUCACIÓN SECUNDARIA
A10: DIRECTORA: | H10: MTRA. OFELIA ELIZABETH OCHOA ROMERO
B12: Español III | C12: Matemáticas III | D12: Segunda Lengua: Inglés III | E12: Ciencias III (Énfasis en Química) | F12: Historia II | G12: Formación Cívica y Ética II | H12: Tecnología III | I12: Educación Física III | J12: Artes III
B13: ='APROV 3'!B26:D26 -> 8.6 | C13: ='APROV 3'!E26 -> 8.4 | D13: ='APROV 3'!H26 -> 8.6 | E13: ='APROV 3'!K26 -> 8.6 | F13: ='APROV 3'!N26 -> 8.7 | G13: ='APROV 3'!Q26 -> 8.7 | H13: ='APROV 3'!T26 -> 8.9 | I13: ='APROV 3'!W26 -> 9.3 | J13: ='APROV 3'!Z26 -> 9

Sheet Gráfica PART 3
B3: Secretaría de Educación Pública del Estado de Baja California Sur
B4: Dirección de Educación Secundaria
B5: TERCER GRADO
B6: PERIODO EVALUACIÓN: | N6: =IF('APROV 1'!N7:Z7<>0,'APROV 1'!N7:Z7, "") -> CONCENTRADO FINAL
B7: CICLO ESCOLAR : | N7: =IF('APROV 1'!N8:Z8<>0, 'APROV 1'!N8:Z8, "") -> 2021-2022
A10: DIRECCIÓN: | H10: EDUCACIÓN SECUNDARIA
A11: DIRECTORA: | H11: MTRA. OFELIA ELIZABETH OCHOA ROMERO
D13: COMUNICACIÓN Y PARTICIPACIÓN SOSTENIDA | E13: COMUNICACIÓN Y PARTICIPACIÓN INTERMITENTE | F13: COMUNICACIÓN PRACTICAMENTE INEXISTENTE
D14: ='PARTICIPACIÓN 3'!H27/100 -> 0.9297549057 | E14: ='PARTICIPACIÓN 3'!P27/100 -> 0.06383141177 | F14: ='PARTICIPACIÓN 3'!X27/100 -> 0.006413682523

Sheet Gráfica Promedios Finales
B3: Secretaría de Educación Pública del Estado de Baja California Sur
B4: Dirección de Educación Secundaria
B5: PERIODO DE EVALUACIÓN: | N5: =IF('APROV 1'!N7:Z7<>0,'APROV 1'!N7:Z7, "") -> CONCENTRADO FINAL
B6: CICLO ESCOLAR : | N6: =IF('APROV 1'!N8:Z8<>0, 'APROV 1'!N8:Z8, "") -> 2021-2022
A8: DIRECCIÓN: | H8: EDUCACIÓN SECUNDARIA
A9: DIRECTORA: | H9: MTRA. OFELIA ELIZABETH OCHOA ROMERO
B14: PROMEDIO 1RO | C14: PROMEDIO 2DO | D14: PROMEDIO 3ERO
B15: =+'APROV 1'!AF26 -> 8.8 | C15: =+'APROV 2'!AC26 -> 8.8 | D15: ='APROV 3'!AC26 -> 8.8

Sheet NORMALIDAD MÍNIMA
B3: Secretaría de Educación Pública del Estado de Baja California Sur
B4: Dirección de Educación Secundaria
B5: NORMALIDAD MÍNIMA
B6: PERIODO DE EVALUACIÓN: | I6: =IF('APROV 1'!N7<>0,'APROV 1'!N7, "") -> CONCENTRADO FINAL
B7: CICLO ESCOLAR : | I7: =IF('APROV 1'!N8<>0, 'APROV 1'!N8, "") -> 2021-2022
A9: DIRECCIÓN: | H9: EDUCACIÓN SECUNDARIA
A10: DIRECTORA: | H10: MTRA. OFELIA ELIZABETH OCHOA ROMERO
A12: Modalidad | B12: DIRECTIVOS (Directores, subdirectores) | E12: COORDINADORES | H12: R | I12: INASISTENCIAS | L12: LICENCIAS ECONÓMICAS | N12: LICENCIAS MÉDICAS | P12: TOTAL DE DÍAS NO LABORADOS
B13: H | C13: M | D13: T | E13: H | F13: M | G13: T | I13: I | J13: P.D. | K13: D.N.L.I y P.D. | L13: L.E. | M13: D.N.L.E. | N13: L.M. | O13: D.N.L.M. | P13: DNLI y PD, DNLE, DNLM
A14: =IF(MATRICULA!B17=0,"",MATRICULA!B17) -> Generales Públicas | B14: 47 | C14: 32 | D14: =IF(SUM(B14,C14)=0,"",SUM(B14,C14)) -> 79 | E14: 22 | F14: 14 | G14: =IF(SUM(E14,F14)=0,"",SUM(E14,F14)) -> 36 | H14: 1 | I14: 70 | J14: 20 | K14: =IF(SUM(I14,J14)=0,"",SUM(I14,J14)) -> 90 | L14: 52 | M14: 135 | N14: 42 | O14: 436 | P14: =IF(SUM(K14,M14,O14)=0,"",SUM(K14,M14,O14)) -> 661
A15: =IF(MATRICULA!B18=0,"",MATRICULA!B18) -> Particulares | D15: =IF(SUM(B15,C15)=0,"",SUM(B15,C15)) ->  | G15: =IF(SUM(E15,F15)=0,"",SUM(E15,F15)) ->  | K15: =IF(SUM(I15,J15)=0,"",SUM(I15,J15)) -> 
A16: =IF(MATRICULA!B19=0,"",MATRICULA!B19) -> Secundaria Técnica | B16: 37 | C16: 23 | D16: 60 | E16: 24 | F16: 25 | G16: 49 | H16: 15 | J16: 12 | K16: 12 | L16: 67 | M16: 172 | N16: 43 | O16: 211 | P16: 395
A17: =IF(MATRICULA!B20=0,"",MATRICULA!B20) -> Telesecundaria | B17: 39 | C17: 12 | D17: 51 | J17: 6 | K17: 6 | L17: 44 | M17: 71 | N17: 10 | O17: 59 | P17: 136
A18: =IF(MATRICULA!B21=0,"",MATRICULA!B21) -> 
A19: =IF(MATRICULA!B22=0,"",MATRICULA!B22) -> 
A20: =IF(MATRICULA!B23=0,"",MATRICULA!B23) -> 
A21: =IF(MATRICULA!B24=0,"",MATRICULA!B24) -> 
A22: =IF(MATRICULA!B25=0,"",MATRICULA!B25) -> 
A23: =IF(MATRICULA!B26=0,"",MATRICULA!B26) -> 
A24: Total | B24: =IF(SUM(B14:B23)=0,"",SUM(B14:B23)) -> 123 | C24: 67 | D24: 190 | E24: 46 | F24: 39 | G24: 85 | H24: 16 | I24: 70 | J24: 38 | K24: 108 | L24: 163 | M24: 378 | N24: 95 | O24: 706 | P24: 1192
A26: Modalidad | B26: PERSONAL POR HORAS | E26: DOCENTES | H26: R | I26: INASISTENCIAS (Horas) | L26: LICENCIAS ECONÓMICAS | N26: LICENCIAS MÉDICAS | P26: TOTAL DE HORAS NO LABORADOS
E27: H | F27: M | G27: T | I27: I | J27: P.D. | K27: H.N.L.I y P.D. | L27: L.E. | M27: H.N.L.E. | N27: L.M. | O27: H.N.L.M. | P27: HNLI y PD, HNLE, HNLM
A28: =IF(MATRICULA!B17=0,"",MATRICULA!B17) -> Generales Públicas | E28: 484 | F28: 570 | G28: =IF(SUM(E28,F28)=0,"",SUM(E28,F28)) -> 1054 | H28: 2603 | I28: 2600 | J28: 836 | K28: =IF(SUM(I28,J28)=0,"",SUM(I28,J28)) -> 3436 | L28: 935 | M28: 7479 | N28: 433 | O28: 8674 | P28: =IF(SUM(K28,M28,O28)=0,"",SUM(K28,M28,O28)) -> 19589
A29: =IF(MATRICULA!B18=0,"",MATRICULA!B18) -> Particulares | K29: =IF(SUM(I29,J29)=0,"",SUM(I29,J29)) -> 
A30: =IF(MATRICULA!B19=0,"",MATRICULA!B19) -> Secundaria Técnica | E30: 431 | F30: 456 | G30: 887 | H30: 123 | I30: 2987 | J30: 700 | K30: 3687 | L30: 757 | M30: 8984 | N30: 363 | O30: 7816 | P30: 20487
A31: =IF(MATRICULA!B20=0,"",MATRICULA!B20) -> Telesecundaria | E31: 134 | F31: 136 | G31: 270 | I31: 14 | J31: 5 | K31: 19 | L31: 235 | M31: 1558 | N31: 68 | O31: 974 | P31: 2551
A32: =IF(MATRICULA!B21=0,"",MATRICULA!B21) -> 
A33: =IF(MATRICULA!B22=0,"",MATRICULA!B22) -> 
A34: =IF(MATRICULA!B23=0,"",MATRICULA!B23) -> 
A35: =IF(MATRICULA!B24=0,"",MATRICULA!B24) -> 
A36: =IF(MATRICULA!B25=0,"",MATRICULA!B25) -> 
A37: =IF(MATRICULA!B26=0,"",MATRICULA!B26) -> 
A38: Total | E38: =IF(SUM(E28:E37)=0,"",SUM(E28:E37)) -> 1049 | F38: 1162 | G38: 2211 | H38: 2726 | I38: 5601 | J38: 1541 | K38: 7142 | L38: 1927 | M38: 18021 | N38: 864 | O38: 17464 | P38: 42627
A40: Zona escolar | B40: ASISTENCIA EDUCATIVA (Psicólogos, trabajo social, médicos, prefectos) | E40: ADMINISTRATIVO Y DE APOYO | H40: R | I40: INASISTENCIAS | L40: LICENCIAS ECONÓMICAS | N40: LICENCIAS MÉDICAS | P40: TOTAL DE DÍAS NO LABORADOS
B41: H | C41: M | D41: T | E41: H | F41: M | G41: T | I41: I | J41: P.D. | K41: D.N.L.I y P.D. | L41: L.E. | M41: D.N.L.E. | N41: L.M. | O41: D.N.L.M. | P41: DNLI y PD, DNLE, DNLM
A42: =IF(MATRICULA!B17=0,"",MATRICULA!B17) -> Generales Públicas | B42: 68 | C42: 136 | D42: =IF(SUM(B42,C42)=0,"",SUM(B42,C42)) -> 204 | E42: 205 | F42: 227 | G42: =IF(SUM(E42,F42)=0,"",SUM(E42,F42)) -> 432 | H42: 211 | I42: 506 | J42: 262 | K42: =IF(SUM(I42,J42)=0,"",SUM(I42,J42)) -> 768 | L42: 675 | M42: 1729 | N42: 254 | O42: 1785 | P42: =IF(SUM(K42,M42,O42)=0,"",SUM(K42,M42,O42)) -> 4282
A43: =IF(MATRICULA!B18=0,"",MATRICULA!B18) -> Particulares
A44: =IF(MATRICULA!B19=0,"",MATRICULA!B19) -> Secundaria Técnica | B44: 81 | C44: 89 | D44: 170 | E44: 146 | F44: 185 | G44: 331 | H44: 55 | I44: 289 | J44: 172 | K44: 461 | L44: 501 | M44: 1340 | N44: 257 | O44: 1478 | P44: 3279
A45: =IF(MATRICULA!B20=0,"",MATRICULA!B20) -> Telesecundaria | B45: 20 | C45: 11 | D45: 31 | E45: 51 | F45: 48 | G45: 99 | I45: 1 | J45: 67 | K45: 68 | L45: 112 | M45: 332 | N45: 40 | O45: 329 | P45: 729
A46: =IF(MATRICULA!B21=0,"",MATRICULA!B21) -> 
A47: =IF(MATRICULA!B22=0,"",MATRICULA!B22) -> 
A48: =IF(MATRICULA!B23=0,"",MATRICULA!B23) -> 
A49: =IF(MATRICULA!B24=0,"",MATRICULA!B24) -> 
A50: =IF(MATRICULA!B25=0,"",MATRICULA!B25) -> 
A51: =IF(MATRICULA!B26=0,"",MATRICULA!B26) -> 
A52: Total | B52: =IF(SUM(B42:B51)=0,"",SUM(B42:B51)) -> 169 | C52: 236 | D52: 405 | E52: 402 | F52: 460 | G52: 862 | H52: 266 | I52: 796 | J52: 501 | K52: 1297 | L52: 1288 | M52: 3401 | N52: 551 | O52: 3592 | P52: 8290
A54: NOTA: | J54: NOTA:
A55: I.: INASISTENCIAS | J55: H.N.L.E.: HORAS NO LABORADOS POR LICENCIAS ECONÓMICAS
A56: H.N.L.I.: HORAS NO LABORADAS POR INASISTENCIAS | J56: D.N.L.E.: DÍAS NO LABORADOS POR LICENCIAS ECONÓMICAS
A57: D.N.L.I.: DÍAS NO LABORADOS POR INASISTENCIAS | J57: L.M.: PERSONAS QUE PRESENTARON LICENCIAS MÉDICAS
A58: R. : CANTIDAD DE RETARDOS | J58: H.N.L.M.: HORAS NO LABORADAS POR LICENCIAS MÉDICAS
A59: L.E.: PERSONAL QUE SOLICITÓ LICENCIAS ECONÓMICAS | J59: D.N.L.M.: DÍAS NO LABORADOS POR LICENCIAS MÉDICAS
A60: P.D.: PERMISOS DIRECCIÓN
